bitfinex-derivatives/quotes_SOLF0:USTF0_20250514
["timestamp","ask_amount","ask_price","bid_price","bid_amount"]
[1747235772790,66.7,177.16,177.12,72.5048]
[1747235773388,66.7,177.16,177.13,5.6444]
[1747235773588,66.7,177.16,177.12,66.86]
[1747235774186,72.3438,177.16,177.12,66.86]
[1747235774493,66.7,177.16,177.12,66.86]
[1747235774686,66.7,177.16,177.13,5.6444]
[1747235775192,72.344,177.16,177.12,66.86]
[1747235775395,66.7,177.16,177.12,66.86]
[1747235777193,66.7,177.16,177.15,5.644]
[1747235777392,1.8812,177.18,177.12,66.86]
[1747235777692,5.6423,177.21,177.12,66.86]
[1747235777896,66.62,177.2,177.12,66.86]
[1747235778096,11.9251,177.23,177.12,66.86]
[1747235778288,66.62,177.22,177.19,5.6427]
[1747235778489,66.62,177.22,177.12,66.86]
[1747235778689,72.2619,177.22,177.18,5.6429]
[1747235778884,66.62,177.22,177.12,66.86]
[1747235779297,66.62,177.22,177.18,5.6429]
[1747235779298,72.262,177.22,177.18,5.6429]
[1747235779498,66.62,177.22,177.18,5.6429]
[1747235779795,66.62,177.22,177.17,5.6434]
[1747235779996,66.62,177.22,177.12,66.86]
[1747235780397,5.6423,177.21,177.18,5.643]
[1747235780599,66.62,177.22,177.12,66.86]
[1747235780793,10.00553154,177.25,177.12,66.86]
[1747235780995,66.58,177.24,177.13,10.00553154]
[1747235781197,92.42543154,177.28,177.14,66.58]
[1747235781395,66.58,177.27,177.14,66.58]
[1747235781897,66.58,177.27,177.16,10.00553154]
[1747235782097,5.6407,177.26,177.17,66.86]
[1747235782297,66.58,177.27,177.17,66.86]
[1747235782695,5.6405,177.26,177.23,5.6414]
[1747235782898,66.58,177.27,177.23,5.6414]
[1747235783097,72.2204,177.27,177.23,5.6414]
[1747235783297,72.2204,177.27,177.17,66.86]
[1747235783298,5.6404,177.27,177.24,5.6411]
[1747235783500,66.56,177.26,177.24,5.6411]
[1747235783903,3.78205,177.3,177.25,66.86]
[1747235784098,3.78205,177.3,177.26,66.86]
[1747235784497,3.78205,177.3,177.29,5.6396]
[1747235788200,3.78205,177.3,177.28,5.6398]
[1747235788601,70.26205,177.3,177.19,1.8031]
[1747235788904,80.26758154,177.3,177.2,66.48]
[1747235789404,70.26205,177.3,177.2,66.48]
[1747235789601,70.26205,177.3,177.21,1.7518]
[1747235789808,70.26205,177.3,177.21,11.75733154]
[1747235790601,70.26205,177.3,177.28,5.6397]
[1747235790802,70.26205,177.3,177.25,66.46]
[1747235791205,70.26205,177.3,177.29,5.6396]
[1747235792001,70.26205,177.3,177.28,5.6399]
[1747235792305,70.26205,177.3,177.21,11.75733154]
[1747235792306,70.26205,177.3,177.23,66.46]
[1747235792501,5.6398,177.29,177.25,5.6408]
[1747235792904,70.26205,177.3,177.25,5.6408]
[1747235793404,70.26205,177.3,177.26,5.6405]
[1747235793802,70.26205,177.3,177.23,66.46]
[1747235796208,3.78205,177.3,177.23,66.46]
[1747235796508,3.78205,177.3,177.29,5.6396]
[1747235801011,3.78205,177.3,177.27,66.46]
[1747235801214,5.6396,177.29,177.2,10.00553154]
[1747235801407,5.6396,177.29,177.26,5.6402]
[1747235801614,70.10205,177.3,177.21,66.46]
[1747235802012,70.10205,177.3,177.23,10.00553154]
[1747235802013,3.78205,177.3,177.23,10.00553154]
[1747235802204,3.78205,177.3,177.26,10.00553154]
[1747235802413,3.78205,177.3,177.29,5.6396]
[1747235803416,3.78205,177.3,177.29,72.0996]
[1747235804416,3.78205,177.3,177.29,5.6396]
[1747235807322,5e-05,177.3,177.29,5.6396]
[1747235811422,5e-05,177.3,177.27,66.44]
[1747235811614,66.20005,177.3,177.24,553.86]
[1747235812010,66.20005,177.3,177.28,5.6399]
[1747235812215,66.20005,177.3,177.24,553.86]
[1747235812617,66.20005,177.3,177.29,5.6396]
[1747235813720,66.20005,177.3,177.24,487.42]
[1747235813918,66.20005,177.3,177.25,66.44]
[1747235814120,66.20005,177.3,177.24,487.42]
[1747235814324,66.20005,177.3,177.25,66.44]
[1747235814623,66.20005,177.3,177.26,5.6403]
[1747235814921,66.20005,177.3,177.24,553.86]
[1747235816021,66.2,177.3,177.28,5.6397]
[1747235816422,66.2,177.3,177.29,5.6396]
[1747235816724,66.2,177.3,177.24,553.86]
[1747235816921,66.2,177.3,177.29,5.6396]
[1747235820724,15.5005,177.35,177.32,5.6385]
[1747235820922,66.1,177.34,177.24,553.86]
[1747235821225,66.1,177.34,177.25,66.1]
[1747235821716,66.1,177.34,177.33,5.6383]
[1747235822121,67.8932,177.35,177.33,5.6383]
[1747235822723,1.8132,177.35,177.33,5.6383]
[1747235822926,73.5309,177.35,177.32,5.6385]
[1747235823122,67.8932,177.35,177.26,1.9146]
[1747235823426,67.8932,177.35,177.27,66.1]
[1747235823625,67.8932,177.35,177.29,5.6394]
[1747235823921,67.8932,177.35,177.24,487.42]
[1747235824127,3.655,177.34,177.24,487.42]
[1747235824628,5.6389,177.31,177.26,5.6403]
[1747235824829,66.06,177.3,177.26,5.6403]
[1747235825224,71.6995,177.3,177.26,5.6403]
[1747235825427,66.06,177.3,177.23,66.1]
[1747235825927,66.06,177.3,177.16,1.9194]
[1747235826119,10.0,177.29,177.17,66.1]
[1747235826525,11.9401,177.28,177.17,66.1]
[1747235826931,1.8933,177.27,177.2,5.6424]
[1747235827329,1.7848,177.26,177.2,5.6424]
[1747235827625,66.02,177.25,177.18,5.6428]
[1747235827832,66.02,177.25,177.15,553.52]
[1747235828129,5.6421,177.22,177.15,553.52]
[1747235828330,66.02,177.25,177.15,553.52]
[1747235828527,5.6416,177.23,177.18,5.643]
[1747235828733,66.02,177.25,177.15,553.52]
[1747235829131,5.6418,177.22,177.18,5.6431]
[1747235829332,5.6418,177.22,177.15,553.52]
[1747235829529,66.02,177.25,177.15,553.52]
[1747235829728,5.6414,177.24,177.19,5.6427]
[1747235829928,66.02,177.25,177.19,5.6427]
[1747235830129,66.02,177.25,177.15,553.52]
[1747235830637,66.0,177.24,177.15,553.52]
[1747235830830,66.0,177.23,177.21,5.6421]
[1747235831136,66.0,177.23,177.15,553.52]
[1747235831933,66.0,177.23,177.21,5.6419]
[1747235832336,5.6406,177.26,177.15,553.52]
[1747235832529,66.0,177.25,177.15,553.52]
[1747235832735,66.0,177.25,177.16,66.12]
[1747235833536,5.642,177.22,177.17,5.6433]
[1747235834035,66.0,177.25,177.16,66.12]
[1747235835138,5.6415,177.23,177.19,5.6425]
[1747235835338,66.0,177.25,177.16,66.12]
[1747235835734,66.0,177.25,177.18,5.6429]
[1747235836037,66.0,177.25,177.16,66.12]
[1747235836538,65.96,177.24,177.16,66.12]
[1747235837332,65.96,177.24,177.23,5.6415]
[1747235837937,65.96,177.24,177.16,66.12]
[1747235837938,78.0601,177.28,177.26,5.6404]
[1747235838142,65.94,177.27,177.26,5.6404]
[1747235838439,65.94,177.27,177.23,5.6413]
[1747235838646,65.94,177.27,177.17,1.921]
[1747235840047,71.5803,177.27,177.23,5.6412]
[1747235840346,71.5803,177.27,177.17,1.921]
[1747235840545,5.6406,177.26,177.23,5.6413]
[1747235840743,65.92,177.25,177.23,5.6413]
[1747235840948,65.92,177.25,177.17,1.921]
[1747235841543,65.92,177.25,177.23,5.6413]
[1747235841944,65.92,177.25,177.17,1.921]
[1747235842144,65.92,177.25,177.24,5.6412]
[1747235843247,83.7002,177.28,177.25,5.6408]
[1747235843547,71.5402,177.27,177.25,5.6408]
[1747235843847,65.9,177.27,177.25,5.6408]
[1747235844144,65.9,177.27,177.17,1.921]
[1747235844648,5.6411,177.25,177.22,5.6417]
[1747235844945,65.9,177.27,177.17,1.921]
[1747235845548,65.9,177.27,177.23,5.6412]
[1747235845744,65.9,177.27,177.17,1.921]
[1747235846144,65.9,177.27,177.23,5.6413]
[1747235846348,65.9,177.27,177.17,1.921]
[1747235846548,65.9,177.27,177.23,5.6413]
[1747235847151,65.9,177.27,177.24,5.641]
[1747235847446,65.9,177.27,177.17,1.921]
[1747235848249,65.9,177.27,177.26,5.6405]
[1747235848439,65.84,177.27,177.26,5.6405]
[1747235851749,11.9401,177.28,177.26,5.6405]
[1747235851951,65.82,177.27,177.25,5.6407]
[1747235852849,65.8,177.26,177.25,5.6407]
[1747235854457,65.8,177.26,177.24,5.6411]
[1747235854647,65.8,177.26,177.21,66.12]
[1747235854955,71.4406,177.26,177.22,5.6416]
[1747235855857,65.8,177.26,177.21,66.12]
[1747235856252,65.8,177.26,177.17,67.741]
[1747235856856,65.8,177.26,177.21,5.6419]
[1747235856857,5.6411,177.25,177.21,5.6419]
[1747235857160,65.8,177.26,177.17,67.741]
[1747235857456,65.76,177.27,177.17,67.741]
[1747235857845,5.6407,177.26,177.22,5.6415]
[1747235858046,65.76,177.27,177.22,5.6415]
[1747235858254,65.76,177.27,177.17,67.741]
[1747235858455,5.6408,177.26,177.22,5.6416]
[1747235858961,5.6408,177.26,177.23,5.6414]
[1747235859456,5.6408,177.26,177.22,5.6415]
[1747235859656,5.6408,177.26,177.17,67.741]
[1747235859959,65.76,177.27,177.2,5.6422]
[1747235860257,65.76,177.27,177.17,67.741]
[1747235860555,65.76,177.27,177.2,5.6421]
[1747235860860,75.75345536,177.27,177.17,67.741]
[1747235861058,5.6416,177.23,177.19,5.6425]
[1747235862259,5.6416,177.23,177.2,5.6424]
[1747235863155,5.6413,177.24,177.2,5.6424]
[1747235863354,5.6413,177.24,177.17,67.741]
[1747235863658,71.4003,177.27,177.17,67.741]
[1747235863855,71.4003,177.27,177.23,5.6413]
[1747235864063,11.9401,177.28,177.17,67.741]
[1747235864255,5.6407,177.26,177.17,67.741]
[1747235864658,5.6409,177.25,177.17,67.741]
[1747235864855,65.7,177.27,177.17,67.741]
[1747235865259,5.6409,177.25,177.22,5.6416]
[1747235865460,65.7,177.27,177.22,5.6416]
[1747235865862,5.641,177.25,177.17,67.741]
[1747235866157,65.7,177.27,177.17,67.741]
[1747235867064,75.69345536,177.27,177.17,67.741]
[1747235867563,75.69345536,177.27,177.2,5.6423]
[1747235867765,75.69345536,177.27,177.17,65.82]
[1747235868062,65.82,177.26,177.17,65.82]
[1747235868365,5.6418,177.23,177.19,5.6427]
[1747235868565,65.66,177.22,177.17,65.82]
[1747235869169,65.66,177.22,177.14,1.8059]
[1747235869358,65.66,177.22,177.15,65.82]
[1747235869666,71.3019,177.22,177.15,65.82]
[1747235870363,71.3019,177.22,177.18,5.6428]
[1747235870663,65.66,177.22,177.15,65.82]
[1747235870866,65.66,177.22,177.19,5.6426]
[1747235871166,65.66,177.22,177.15,65.82]
[1747235871367,71.302,177.22,177.18,5.6429]
[1747235871667,65.66,177.22,177.15,65.82]
[1747235872065,5.6425,177.2,177.16,5.6436]
[1747235872462,9.99345536,177.18,177.1,487.6]
[1747235872771,71.2635,177.17,177.1,553.42]
[1747235873073,71.2635,177.17,177.12,5.6448]
[1747235873366,5.6438,177.16,177.1,553.42]
[1747235873765,5.6438,177.16,177.13,5.6446]
[1747235873965,5.6438,177.16,177.1,553.42]
[1747235874465,71.2635,177.17,177.1,553.42]
[1747235874863,65.62,177.17,177.1,553.42]
[1747235875071,65.6,177.22,177.11,13.74805536]
[1747235875263,65.6,177.22,177.11,15.55045536]
[1747235876569,65.6,177.22,177.2,5.6424]
[1747235877169,71.2419,177.22,177.19,5.6427]
[1747235877466,65.6,177.22,177.19,5.6427]
[1747235877671,71.2419,177.22,177.18,5.643]
[1747235877873,65.6,177.22,177.18,5.643]
[1747235878064,65.82,177.25,177.16,65.84]
[1747235878264,65.58,177.22,177.16,65.84]
[1747235878671,5.6426,177.2,177.17,5.6432]
[1747235878869,65.58,177.22,177.16,65.84]
[1747235879170,5.6425,177.2,177.17,5.6432]
[1747235879372,65.58,177.22,177.16,65.84]
[1747235880869,65.56,177.16,177.08,65.54]
[1747235881077,5.6451,177.12,177.08,71.1862]
[1747235881370,9.99345536,177.15,177.08,65.54]
[1747235881571,9.99345536,177.15,177.09,5.6458]
[1747235881775,9.99345536,177.15,177.08,65.54]
[1747235881970,11.88465536,177.15,177.08,65.54]
[1747235882172,5.6454,177.11,177.08,65.54]
[1747235882371,65.54,177.12,177.08,65.54]
[1747235883272,75.53345536,177.12,177.08,65.54]
[1747235883472,75.53345536,177.12,177.01,487.72]
[1747235883669,5.6462,177.09,177.04,5.6475]
[1747235884373,5.6465,177.08,177.04,5.6475]
[1747235884773,75.53345536,177.12,177.04,5.6475]
[1747235884972,75.53345536,177.12,177.02,65.56]
[1747235885370,65.54,177.11,177.02,65.56]
[1747235885571,5.6449,177.13,177.02,65.56]
[1747235885772,65.52,177.12,177.02,65.56]
[1747235885975,5.6454,177.11,177.07,5.6464]
[1747235886164,65.52,177.12,177.02,65.56]
[1747235886574,71.1652,177.12,177.02,65.56]
[1747235887069,5.6454,177.11,177.02,65.56]
[1747235887375,65.52,177.12,177.02,65.56]
[1747235887877,71.165,177.12,177.02,65.56]
[1747235888476,5.6454,177.11,177.02,65.56]
[1747235888770,3.7135,177.14,177.02,65.56]
[1747235888977,5.6439,177.16,177.03,65.5]
[1747235889177,65.5,177.15,177.04,16.019113]
[1747235889974,5.6448,177.13,177.04,16.019113]
[1747235890274,65.5,177.15,177.03,67.2653]
[1747235890478,65.5,177.15,177.1,5.6454]
[1747235890776,5.6449,177.13,177.03,67.2653]
[1747235890977,65.5,177.15,177.11,5.6453]
[1747235891183,5.6446,177.14,177.11,5.6453]
[1747235891870,65.5,177.15,177.12,5.6449]
[1747235892277,65.5,177.15,177.07,65.58]
[1747235892475,5.6445,177.14,177.07,65.58]
[1747235892970,5.6447,177.13,177.07,65.58]
[1747235893184,65.5,177.15,177.07,65.58]
[1747235893573,5.6452,177.12,177.08,5.646]
[1747235893878,131.08,177.15,177.07,65.58]
[1747235894377,5.6444,177.14,177.1,5.6454]
[1747235894578,5.6444,177.14,177.07,65.58]
[1747235895878,131.08,177.15,177.07,65.58]
[1747235896080,65.44,177.14,177.07,65.58]
[1747235896680,65.58,177.19,177.07,65.58]
[1747235896982,5.6437,177.16,177.08,3.8207]
[1747235897281,65.44,177.15,177.08,3.8207]
[1747235897875,65.44,177.15,177.1,5.6456]
[1747235898284,5.645,177.13,177.1,5.6456]
[1747235899385,5.6444,177.14,177.1,5.6456]
[1747235899585,5.6444,177.14,177.11,5.6452]
[1747235899986,5.6444,177.14,177.1,5.6455]
[1747235900686,5.6447,177.13,177.1,5.6455]
[1747235900886,65.44,177.15,177.1,5.6455]
[1747235901077,65.44,177.15,177.11,5.6451]
[1747235901285,71.0842,177.15,177.11,5.6451]
[1747235902289,65.44,177.15,177.07,65.58]
[1747235902583,65.38,177.16,177.07,65.58]
[1747235902783,65.38,177.16,177.15,5.6438]
[1747235903785,65.38,177.16,177.07,65.58]
[1747235904181,5.6442,177.15,177.07,65.58]
[1747235904586,5.6442,177.15,177.12,5.6448]
[1747235905086,71.0239,177.16,177.12,5.6448]
[1747235905385,65.38,177.16,177.12,5.6448]
[1747235905686,5.6443,177.15,177.12,5.6448]
[1747235905988,65.38,177.16,177.08,65.58]
[1747235906184,5.6442,177.15,177.08,65.58]
[1747235906489,65.38,177.16,177.08,65.58]
[1747235907091,5.6445,177.14,177.1,5.6456]
[1747235907387,65.38,177.16,177.1,5.6456]
[1747235907587,5.6446,177.14,177.1,5.6456]
[1747235907787,65.38,177.16,177.09,5.6458]
[1747235908084,65.38,177.16,177.08,65.58]
[1747235908289,5.6449,177.13,177.09,5.6459]
[1747235908490,1.8219,177.15,177.09,5.6459]
[1747235908681,5.4103,177.15,177.04,65.58]
[1747235908885,65.58,177.14,177.06,5.6467]
[1747235909289,5.6458,177.1,177.06,5.6467]
[1747235909484,65.32,177.09,177.06,5.6467]
[1747235910395,70.966,177.09,177.06,5.6467]
[1747235910588,65.32,177.09,177.06,5.6467]
[1747235911893,5.6463,177.08,177.04,65.58]
[1747235912083,65.32,177.09,177.01,487.72]
[1747235912492,5.6465,177.08,177.03,5.6477]
[1747235912791,65.32,177.09,177.03,5.6477]
[1747235912987,65.32,177.09,177.01,487.72]
[1747235913192,5.6465,177.08,177.03,5.6477]
[1747235913889,5.6465,177.08,177.04,5.6475]
[1747235914193,65.32,177.09,177.01,487.72]
[1747235914386,65.32,177.09,177.08,5.6463]
[1747235915497,65.32,177.09,177.05,65.3]
[1747235916299,65.32,177.09,177.01,553.02]
[1747235916601,5.6468,177.07,177.01,65.3]
[1747235916796,75.33345316,177.09,177.01,65.3]
[1747235917098,140.63345316,177.09,177.01,65.3]
[1747235917495,130.62,177.09,177.01,65.3]
[1747235917695,5.6474,177.05,177.01,70.9484]
[1747235917996,65.26,177.04,177.01,70.9484]
[1747235918195,65.26,177.04,176.98,1.7778]
[1747235918497,65.26,177.04,176.97,65.32]
[1747235918896,5.6484,177.02,176.98,5.6492]
[1747235919094,65.26,177.04,176.97,65.32]
[1747235919497,65.26,177.04,176.99,5.6491]
[1747235919699,65.26,177.04,176.97,65.32]
[1747235920599,65.26,177.04,177.0,5.6485]
[1747235921200,70.9076,177.04,177.0,5.6485]
[1747235921497,65.26,177.04,177.01,5.6485]
[1747235921798,65.26,177.04,176.97,65.32]
[1747235922298,70.9077,177.04,176.97,65.32]
[1747235922492,70.9077,177.04,177.0,5.6486]
[1747235922697,65.26,177.04,176.97,65.32]
[1747235923001,65.26,177.04,176.99,5.6489]
[1747235923500,5.6481,177.03,176.99,5.6489]
[1747235923897,5.6481,177.03,176.97,65.32]
[1747235924304,5.6481,177.03,176.99,5.6489]
[1747235924498,5.6482,177.02,176.99,5.6489]
[1747235925303,5.6479,177.03,176.99,5.6489]
[1747235925503,65.26,177.04,176.98,5.6493]
[1747235925704,5.6483,177.02,176.98,5.6493]
[1747235925901,5.6483,177.02,176.97,65.32]
[1747235926604,5.6483,177.02,176.99,5.6491]
[1747235926796,5.648,177.03,176.99,5.6491]
[1747235927302,65.26,177.04,176.97,65.32]
[1747235927606,1.9157,177.07,176.97,65.32]
[1747235927808,65.2,177.06,176.97,65.32]
[1747235928105,5.6474,177.05,177.01,5.6482]
[1747235928304,65.2,177.06,176.97,65.32]
[1747235928509,65.2,177.06,177.0,5.6486]
[1747235928907,65.2,177.06,176.97,65.32]
[1747235929103,5.6484,177.02,176.98,5.6494]
[1747235929407,65.2,177.01,176.93,67.1514]
[1747235929600,5.6492,176.99,176.95,5.6502]
[1747235929798,5.6492,176.99,176.93,65.34]
[1747235930009,65.2,177.0,176.93,65.34]
[1747235930715,65.2,177.0,176.97,5.6497]
[1747235931913,70.849,177.0,176.96,5.65]
[1747235932509,70.849,177.0,176.93,65.34]
[1747235932810,65.2,177.0,176.97,5.6495]
[1747235934711,70.8489,177.0,176.97,5.6495]
[1747235935315,65.2,177.0,176.98,5.6495]
[1747235935713,65.2,177.0,176.93,65.34]
[1747235936014,70.8488,177.0,176.93,65.34]
[1747235936515,5.6492,176.99,176.96,5.6499]
[1747235937917,5.6496,176.98,176.95,5.6504]
[1747235939018,5.6493,176.99,176.95,5.6504]
[1747235939515,5.6493,176.99,176.96,5.65]
[1747235940120,5.6493,176.99,176.95,5.6503]
[1747235940316,75.22396724,177.0,176.93,65.34]
[1747235940717,65.2,177.0,176.93,65.34]
[1747235941217,5.6492,176.99,176.93,65.34]
[1747235941518,65.2,177.0,176.93,65.34]
[1747235941820,70.8489,177.0,176.96,5.6499]
[1747235942022,70.8489,177.0,176.93,65.34]
[1747235942322,5.6492,176.99,176.93,65.34]
[1747235943121,5.6492,176.99,176.96,5.6498]
[1747235943316,70.8489,177.0,176.93,65.34]
[1747235943718,70.8489,177.0,176.97,5.6496]
[1747235944218,5.6492,176.99,176.96,5.65]
[1747235944619,65.2,177.0,176.93,65.34]
[1747235944823,65.2,177.0,176.96,5.6499]
[1747235945220,5.6494,176.99,176.96,5.6499]
[1747235945424,5.6494,176.99,176.95,5.6503]
[1747235945613,65.2,177.0,176.95,5.6503]
[1747235946119,65.2,177.0,176.94,5.6506]
[1747235946323,65.2,177.0,176.91,1.8459]
[1747235946822,5.65,176.97,176.93,5.6509]
[1747235947023,75.22396724,177.0,176.9,65.1]
[1747235948416,5.6503,176.96,176.92,5.6512]
[1747235948922,5.6499,176.97,176.9,65.1]
[1747235949227,65.04,176.96,176.9,65.1]
[1747235949628,65.04,176.98,176.9,65.1]
[1747235950124,65.04,176.99,176.88,65.1]
[1747235950629,5.6505,176.95,176.91,5.6515]
[1747235950829,65.04,176.99,176.91,5.6515]
[1747235951131,5.6509,176.94,176.9,5.6518]
[1747235951325,132.0003,176.99,176.88,65.1]
[1747235951525,1.7848,176.98,176.88,65.1]
[1747235951929,10.02396724,176.97,176.88,65.1]
[1747235952526,5.6516,176.92,176.88,70.7525]
[1747235952829,70.6716,176.92,176.88,65.1]
[1747235953126,65.02,176.92,176.88,70.7526]
[1747235953328,65.02,176.92,176.88,65.1]
[1747235954629,65.02,176.92,176.89,5.6521]
[1747235954929,65.02,176.92,176.88,65.1]
[1747235955230,65.02,176.92,176.9,5.652]
[1747235956628,65.02,176.92,176.84,65.12]
[1747235956831,5.6524,176.89,176.84,65.12]
[1747235957130,65.02,176.92,176.86,5.6531]
[1747235957526,5.6522,176.9,176.86,5.6531]
[1747235958334,65.02,176.92,176.86,5.6531]
[1747235958733,65.02,176.92,176.87,5.6529]
[1747235959034,65.02,176.92,176.84,65.12]
[1747235959235,65.02,176.92,176.9,5.6517]
[1747235959434,5.651,176.94,176.9,5.6517]
[1747235959624,70.631,176.94,176.9,5.6517]
[1747235959932,5.651,176.94,176.9,5.6517]
[1747235960123,70.611,176.94,176.9,5.6517]
[1747235961233,5.6511,176.93,176.9,5.6517]
[1747235961536,64.96,176.94,176.84,65.12]
[1747235961831,5.6516,176.92,176.88,5.6525]
[1747235962233,5.6516,176.92,176.84,65.12]
[1747235962424,5.6516,176.92,176.88,5.6523]
[1747235962630,5.6516,176.92,176.84,65.12]
[1747235963434,5.6516,176.92,176.83,488.26]
[1747235963727,5.6516,176.92,176.84,65.12]
[1747235964536,5.6512,176.93,176.84,65.12]
[1747235965234,5.6516,176.92,176.89,5.6523]
[1747235965532,64.96,176.94,176.89,5.6523]
[1747235965934,5.6517,176.91,176.89,5.6523]
[1747235966137,64.96,176.94,176.89,5.6523]
[1747235966435,64.96,176.94,176.84,65.12]
[1747235966436,70.6108,176.94,176.84,65.12]
[1747235967044,70.6108,176.94,176.91,5.6516]
[1747235967236,5.6511,176.93,176.91,5.6516]
[1747235967434,64.96,176.94,176.84,65.12]
[1747235967737,5.6516,176.92,176.89,5.6522]
[1747235967937,5.6516,176.92,176.84,65.12]
[1747235968136,64.96,176.94,176.84,65.12]
[1747235968330,5.6512,176.93,176.84,65.12]
[1747235968537,64.96,176.94,176.88,5.6525]
[1747235968839,64.96,176.94,176.84,65.12]
[1747235969536,64.96,176.94,176.88,5.6524]
[1747235969733,64.96,176.94,176.84,65.12]
[1747235970039,5.6515,176.92,176.89,5.6523]
[1747235970241,64.96,176.94,176.84,65.12]
[1747235970440,64.96,176.94,176.85,65.12]
[1747235970645,5.6519,176.91,176.87,5.6527]
[1747235970939,5.6519,176.91,176.85,65.12]
[1747235971337,5.6521,176.9,176.85,65.12]
[1747235971643,64.96,176.94,176.87,5.6529]
[1747235972043,64.96,176.94,176.85,65.12]
[1747235972342,5.6519,176.91,176.85,65.12]
[1747235972745,5.6519,176.91,176.87,5.6527]
[1747235974044,5.6515,176.92,176.88,5.6525]
[1747235974745,5.6517,176.91,176.88,5.6525]
[1747235975145,5.6517,176.91,176.87,5.6528]
[1747235975743,5.652,176.9,176.87,5.6528]
[1747235975940,64.96,176.94,176.85,65.12]
[1747235976143,64.86,176.95,176.85,65.12]
[1747235976340,5.6509,176.94,176.85,65.12]
[1747235976541,5.6509,176.94,176.9,5.6518]
[1747235976945,64.86,176.95,176.85,65.12]
[1747235977246,64.86,176.95,176.87,5.6528]
[1747235977546,5.6519,176.91,176.87,5.6528]
[1747235977840,64.86,176.95,176.86,70.5332]
[1747235978048,5.652,176.9,176.86,64.88]
[1747235978235,70.492,176.9,176.86,64.88]
[1747235978542,64.84,176.9,176.86,64.88]
[1747235979548,64.84,176.9,176.84,5.6537]
[1747235980045,5.6529,176.88,176.84,5.6537]
[1747235980441,74.86396724,176.9,176.82,64.88]
[1747235980841,1.7937,176.89,176.82,64.88]
[1747235981041,5.6538,176.85,176.82,64.88]
[1747235981343,70.4738,176.85,176.82,64.88]
[1747235981550,70.4738,176.85,176.82,70.5345]
[1747235981940,64.82,176.85,176.82,70.5345]
[1747235982346,64.82,176.85,176.82,64.88]
[1747235983545,64.82,176.85,176.83,5.6542]
[1747235984147,64.82,176.85,176.82,64.88]
[1747235984643,64.82,176.85,176.82,70.5344]
[1747235985047,64.82,176.85,176.82,64.88]
[1747235985548,64.82,176.85,176.83,5.6542]
[1747235986142,64.82,176.85,176.82,64.88]
[1747235986944,64.82,176.85,176.83,5.654]
[1747235987143,64.82,176.85,176.82,64.88]
[1747235987450,64.82,176.85,176.84,5.6539]